bitfinex/quotes_BTCUSD_20240611
["timestamp","ask_amount","ask_price","bid_price","bid_amount"]
[1718064419808,4.11135577,69552.0,69551.0,0.100946]
[1718064420478,4.40132,69552.0,69551.0,0.100946]
[1718064421150,1.270247,69546.0,69545.0,0.092336]
[1718064421402,2.5687683,69546.0,69545.0,0.092336]
[1718064421622,2.4687683,69546.0,69545.0,0.092336]
[1718064421837,2.38109022,69546.0,69545.0,0.092336]
[1718064422293,2.46861297,69546.0,69545.0,0.092336]
[1718064422764,2.46859689,69546.0,69545.0,0.092336]
[1718064423002,2.48059689,69546.0,69545.0,0.092336]
[1718064423450,2.76817589,69546.0,69545.0,0.092336]
[1718064423674,2.75393316,69546.0,69545.0,0.092336]
[1718064423936,2.86817431,69546.0,69545.0,0.092336]
[1718064424119,3.02562787,69546.0,69545.0,0.092336]
[1718064424341,2.88017431,69546.0,69545.0,0.092336]
[1718064424549,2.90790705,69546.0,69545.0,0.092336]
[1718064424750,2.89590705,69546.0,69545.0,0.092336]
[1718064424961,2.02873,69538.0,69537.0,0.09139]
[1718064425175,3.12241105,69538.0,69537.0,0.09139]
[1718064425393,3.5246785,69538.0,69537.0,0.09139]
[1718064425609,3.8122905,69538.0,69537.0,0.09139]
[1718064426440,3.75627526,69538.0,69537.0,0.09139]
[1718064426649,3.82229276,69538.0,69537.0,0.09139]
[1718064427289,3.75627526,69538.0,69537.0,0.09139]
[1718064427773,3.76627526,69538.0,69537.0,0.09139]
[1718064428001,3.76555152,69538.0,69537.0,0.09139]
[1718064428475,3.49316204,69538.0,69537.0,0.09139]
[1718064428910,3.36401146,69538.0,69537.0,0.09139]
[1718064430113,3.07639946,69538.0,69537.0,0.09139]
[1718064430565,3.36401146,69538.0,69537.0,0.09139]
[1718064430786,3.28561146,69538.0,69537.0,0.09139]
[1718064431008,3.28561146,69538.0,69537.0,0.16819]
[1718064431176,3.28732464,69538.0,69537.0,0.16819]
[1718064431768,2.99971264,69538.0,69537.0,0.16819]
[1718064432215,3.05726164,69538.0,69537.0,0.16819]
[1718064432884,3.34487364,69538.0,69537.0,0.16819]
[1718064433321,3.05726164,69538.0,69537.0,0.16819]
[1718064433538,2.84316164,69538.0,69537.0,0.32959]
[1718064433754,2.90596164,69538.0,69537.0,0.32959]
[1718064433967,2.83097879,69538.0,69537.0,0.32959]
[1718064434420,2.73097879,69538.0,69537.0,0.32959]
[1718064434639,2.76817879,69538.0,69537.0,0.32959]
[1718064434849,2.83097879,69538.0,69537.0,0.32959]
[1718064435063,2.83109922,69538.0,69537.0,0.32959]
[1718064436199,2.91714001,69538.0,69537.0,0.32959]
[1718064436393,2.91989343,69538.0,69537.0,0.32959]
[1718064436596,2.83385264,69538.0,69537.0,0.32959]
[1718064437378,2.83385264,69538.0,69537.0,0.330536]
[1718064437790,2.85097615,69538.0,69537.0,0.330536]
[1718064440293,2.95852593,69538.0,69537.0,0.330536]
[1718064444219,2.95852593,69538.0,69537.0,0.092336]
[1718064444397,3.0326804,69538.0,69537.0,0.092336]
[1718064444604,2.92513062,69538.0,69537.0,0.092336]
[1718064445785,2.59204112,69538.0,69537.0,0.092336]
[1718064445987,2.9250749,69538.0,69537.0,0.092336]
[1718064446732,2.8250749,69538.0,69537.0,0.322436]
[1718064447554,2.7675259,69538.0,69537.0,0.322436]
[1718064448544,2.8675259,69538.0,69537.0,0.322436]
[1718064449121,2.7675259,69538.0,69537.0,0.322436]
[1718064449336,2.7047259,69538.0,69537.0,0.322436]
[1718064449540,2.7675259,69538.0,69537.0,0.322436]
[1718064450493,2.8675259,69538.0,69537.0,0.322436]
[1718064450660,2.7675259,69538.0,69537.0,0.322436]
[1718064452185,2.8675259,69538.0,69537.0,0.322436]
[1718064452430,2.85319506,69538.0,69537.0,0.322436]
[1718064452637,2.86739011,69538.0,69537.0,0.322436]
[1718064452849,2.76739011,69538.0,69537.0,0.322436]
[1718064453064,2.86739011,69538.0,69537.0,0.332736]
[1718064453286,2.94759011,69538.0,69537.0,0.092336]
[1718064453505,2.86739011,69538.0,69537.0,0.092336]
[1718064453728,3.15657424,69538.0,69537.0,0.092336]
[1718064453938,3.44418624,69538.0,69537.0,0.092336]
[1718064454149,3.84747096,69538.0,69537.0,0.092336]
[1718064454379,3.82509086,69538.0,69537.0,0.092336]
[1718064454591,3.55985953,69538.0,69537.0,0.092336]
[1718064454800,3.5599199,69538.0,69537.0,0.092336]
[1718064455231,3.56189212,69538.0,69537.0,0.092336]
[1718064456058,2.83990755,69538.0,69537.0,0.092336]
[1718064456269,3.56243232,69538.0,69537.0,0.092336]
[1718064456475,3.85004432,69538.0,69537.0,0.092336]
[1718064456892,4.10134432,69538.0,69537.0,0.05451998]
[1718064457106,4.10134432,69538.0,69535.0,0.1]
[1718064457107,1.59233995,69537.0,69536.0,0.0754]
[1718064457312,1.2313,69531.0,69530.0,0.100086]
[1718064457531,2.94231709,69531.0,69530.0,0.100086]
[1718064457729,3.2056052,69531.0,69530.0,0.100086]
[1718064457933,4.04136892,69531.0,69530.0,0.100086]
[1718064458970,4.05536892,69531.0,69530.0,0.100086]
[1718064459856,4.20294109,69531.0,69530.0,0.100086]
[1718064460075,1.270412,69530.0,69529.0,0.02297114]
[1718064460284,2.93111207,69530.0,69529.0,0.02297114]
[1718064460489,3.363077,69530.0,69529.0,0.02297114]
[1718064460925,3.50844153,69530.0,69529.0,0.02297114]
[1718064461147,3.363077,69530.0,69529.0,0.02297114]
[1718064461369,3.50840958,69530.0,69529.0,0.02297114]
[1718064461805,3.52240958,69530.0,69529.0,0.02297114]
[1718064462027,3.40918789,69530.0,69529.0,0.02297114]
[1718064462233,3.39666096,69530.0,69529.0,0.02297114]
[1718064462435,3.22894288,69530.0,69529.0,0.02297114]
[1718064463020,3.25132846,69530.0,69529.0,0.02297114]
[1718064463248,3.53897346,69530.0,69529.0,0.02297114]
[1718064464046,3.53897346,69530.0,69519.0,0.1]
[1718064464047,1.950515,69520.0,69519.0,0.1]
[1718064464269,3.3768004,69520.0,69519.0,0.1]
[1718064464472,4.07162136,69520.0,69519.0,0.1]
[1718064464682,4.17838092,69520.0,69519.0,0.1]
[1718064464884,4.56734865,69520.0,69519.0,0.1]
[1718064465192,4.58973641,69520.0,69519.0,0.1]
[1718064465396,4.60173641,69520.0,69519.0,0.08660223]
[1718064465610,4.54708504,69520.0,69519.0,0.06699714]
[1718064465823,4.63561879,69520.0,69519.0,0.06699714]
[1718064466885,4.69866319,69520.0,69519.0,0.06699714]
[1718064467125,4.33700164,69520.0,69519.0,0.06699714]
[1718064467539,4.18046234,69520.0,69519.0,0.06699714]
[1718064468569,4.18046234,69520.0,69519.0,0.06794314]
[1718064470277,4.18018647,69520.0,69519.0,0.06794314]
[1718064470447,3.95288647,69520.0,69519.0,0.06794314]
[1718064470931,3.89008647,69520.0,69519.0,0.06794314]
[1718064471162,3.95288647,69520.0,69519.0,0.06794314]
[1718064472929,3.89008647,69520.0,69519.0,0.06794314]
[1718064473144,3.95288647,69520.0,69519.0,0.06794314]
[1718064473395,4.18028647,69520.0,69519.0,0.06794314]
[1718064476650,4.18028736,69520.0,69519.0,0.06794314]
[1718064476856,1.511592,69510.0,69509.0,0.1584]
[1718064477059,1.96103186,69510.0,69509.0,0.1584]
[1718064477269,2.24875986,69510.0,69509.0,0.1584]
[1718064478335,2.29170609,69510.0,69509.0,0.1584]
[1718064478825,2.24875986,69510.0,69509.0,0.1584]
[1718064479032,0.34387,69507.0,69506.0,0.1527]
[1718064479204,1.08104986,69507.0,69506.0,0.1527]
[1718064479618,1.36878986,69507.0,69506.0,0.1527]
[1718064479863,0.811653,69500.0,69498.0,0.12272]
[1718064480064,1.76109286,69500.0,69499.0,0.229146]
[1718064480323,1.95089281,69500.0,69499.0,0.25140328]
[1718064480517,1.85089281,69500.0,69499.0,0.229146]
[1718064480933,1.56312381,69500.0,69499.0,0.229146]
[1718064483240,1.85089281,69500.0,69499.0,0.229146]
[1718064483552,1.78809281,69500.0,69499.0,0.229146]
[1718064483810,1.85089281,69500.0,69499.0,0.229146]
[1718064484918,2.23866181,69500.0,69499.0,0.229146]
[1718064485319,2.23866181,69500.0,69499.0,0.153646]
[1718064485492,2.25313855,69500.0,69499.0,0.153646]
[1718064486672,2.25713855,69500.0,69499.0,0.153646]
[1718064486885,1.80656955,69500.0,69499.0,0.000946]
[1718064487098,1.87236955,69500.0,69499.0,0.241046]
[1718064487309,1.86489281,69500.0,69499.0,0.241046]
[1718064488018,1.30152386,69500.0,69499.0,0.241046]
[1718064488233,0.06440642,69513.0,69499.0,0.241046]
[1718064488234,0.5,69507.0,69506.0,0.2761]
[1718064488453,0.2,69511.0,69509.0,0.02]
[1718064488691,0.27986,69507.0,69506.0,0.08509239]
[1718064488913,0.27986,69507.0,69506.0,0.0828]
[1718064489139,0.27986,69507.0,69506.0,0.02828]
[1718064489368,0.21346,69507.0,69506.0,0.226672]
[1718064490251,0.2,69522.0,69514.0,0.143855]
[1718064490457,0.2,69522.0,69515.0,0.0628]
[1718064491094,0.2,69522.0,69509.0,0.143864]
[1718064491095,0.07215996,69519.0,69509.0,0.143864]
[1718064491291,0.21647989,69519.0,69509.0,0.143864]
[1718064491505,0.07215996,69512.0,69509.0,0.143864]
[1718064491711,0.57542,69511.0,69509.0,0.143864]
[1718064492830,0.57542,69511.0,69509.0,0.144864]
[1718064493074,0.57542,69511.0,69509.0,0.143864]
[1718064493280,0.57542,69511.0,69510.0,0.02354741]
[1718064494625,0.57542,69511.0,69510.0,0.02554741]
[1718064495303,0.57542,69511.0,69510.0,0.02654741]
[1718064502205,0.57628,69511.0,69510.0,0.17041141]
[1718064507657,0.57628,69511.0,69510.0,0.20945255]
[1718064508098,0.57628,69511.0,69510.0,0.92922848]
[1718064508342,0.57628,69511.0,69510.0,1.02922848]
[1718064508775,0.57628,69511.0,69510.0,1.02722848]
[1718064508986,0.57628,69511.0,69510.0,1.02622848]
[1718064509195,0.57628,69511.0,69510.0,1.02822848]
[1718064509634,0.57628,69511.0,69510.0,1.02622848]
[1718064510066,0.57628,69511.0,69510.0,1.02822848]
[1718064518042,0.57628,69511.0,69510.0,1.04571264]
[1718064518422,0.57628,69511.0,69510.0,1.05789271]
[1718064522910,0.57628,69511.0,69510.0,0.96399271]
[1718064528612,0.57628,69511.0,69510.0,0.90139271]
[1718064529024,0.57628,69511.0,69510.0,0.96399271]
[1718064549534,0.57628,69511.0,69510.0,1.00698912]
[1718064549943,0.57628,69511.0,69510.0,1.02848732]
[1718064550579,0.57628,69511.0,69510.0,0.96399271]
[1718064552171,0.57628,69511.0,69510.0,0.90139271]
[1718064552376,0.57628,69511.0,69510.0,1.04998553]
[1718064553365,0.57628,69511.0,69510.0,0.96399271]
[1718064555539,0.57628,69511.0,69510.0,0.90139271]
[1718064555803,0.57628,69511.0,69510.0,0.96399271]
[1718064559389,0.57628,69511.0,69510.0,1.0716899]
[1718064560931,0.57628,69511.0,69510.0,0.96399271]
[1718064562394,0.57628,69511.0,69510.0,1.0716899]
[1718064564306,0.57628,69511.0,69510.0,0.96399271]
[1718064564521,0.57628,69511.0,69510.0,1.07172621]
[1718064564762,0.57628,69511.0,69510.0,0.96399271]
[1718064567282,0.65428,69511.0,69510.0,0.69985768]
[1718064567483,0.65428,69511.0,69510.0,0.76245768]
[1718064567657,0.65428,69511.0,69510.0,0.67626471]
[1718064567841,0.65428,69511.0,69510.0,0.75170165]
[1718064568240,0.65428,69511.0,69510.0,0.73170165]
[1718064568526,0.65428,69511.0,69510.0,0.65626471]
[1718064568908,0.65428,69511.0,69510.0,0.67626471]
[1718064569692,0.65428,69511.0,69510.0,0.65626471]
[1718064570738,0.65428,69511.0,69510.0,0.26941141]
[1718064570940,0.81848,69511.0,69510.0,0.16941141]
[1718064571926,0.81848,69511.0,69510.0,0.16841141]
[1718064572152,0.81848,69511.0,69510.0,0.16941141]
[1718064572754,0.81848,69511.0,69510.0,0.16841141]
[1718064573223,0.81848,69511.0,69510.0,0.16941141]
[1718064574165,0.81848,69511.0,69510.0,0.16841141]
[1718064574373,0.81848,69511.0,69510.0,0.16941141]
[1718064586360,0.81848,69511.0,69510.0,0.23201141]
[1718064587566,0.81848,69511.0,69510.0,0.16941141]
[1718064600446,0.57628,69511.0,69510.0,0.48417222]
[1718064600903,0.57628,69511.0,69510.0,0.50417222]
[1718064601140,0.57628,69511.0,69510.0,0.47713941]
[1718064603458,0.57628,69511.0,69510.0,0.76486741]
[1718064603677,0.57628,69511.0,69510.0,0.86486741]
[1718064604533,0.57628,69511.0,69510.0,0.86386741]
[1718064604735,0.57628,69511.0,69510.0,0.96911172]
[1718064604940,0.57628,69511.0,69510.0,1.01317534]
[1718064605806,0.57628,69511.0,69510.0,1.01217534]
[1718064606048,0.57628,69511.0,69510.0,1.01317534]
[1718064606645,0.57628,69511.0,69510.0,1.15749527]
[1718064608906,0.57628,69511.0,69510.0,1.23208311]
[1718064609626,0.57628,69511.0,69510.0,1.53043623]
[1718064615395,0.57628,69511.0,69510.0,1.45584839]
[1718064615597,0.57628,69511.0,69510.0,1.53043623]
[1718064616811,0.57628,69511.0,69510.0,1.48737261]
[1718064617021,0.57628,69511.0,69510.0,1.48737119]
[1718064619150,0.57628,69511.0,69510.0,1.5304398]
[1718064623467,0.57628,69511.0,69510.0,1.5304397]
[1718064624393,0.57628,69511.0,69510.0,1.45584816]
[1718064624598,0.57628,69511.0,69510.0,1.23208195]
[1718064624818,0.57628,69511.0,69510.0,1.53043137]
[1718064627791,0.57628,69511.0,69510.0,1.48736798]
[1718064628202,0.57628,69511.0,69510.0,1.48736816]
[1718064629239,0.57628,69511.0,69510.0,1.53043144]
[1718064629658,0.57628,69511.0,69510.0,1.53043137]
[1718064630491,0.57628,69511.0,69510.0,1.59303137]
[1718064630710,0.57628,69511.0,69510.0,1.59303172]
[1718064631064,0.57628,69511.0,69510.0,1.59303144]
[1718064631915,0.57628,69511.0,69510.0,1.54996816]
[1718064632321,0.57628,69511.0,69510.0,1.59303144]
[1718064633231,0.57628,69511.0,69510.0,1.59303217]
[1718064634676,0.57628,69511.0,69510.0,1.53042746]
[1718064634878,0.57628,69511.0,69510.0,1.59302746]
[1718064636343,0.57628,69511.0,69510.0,1.29467724]
[1718064636556,0.57628,69511.0,69510.0,1.59302746]
[1718064638349,0.57628,69511.0,69510.0,1.54996889]
[1718064641499,0.57628,69511.0,69510.0,1.61457244]
[1718064641988,0.81708,69511.0,69510.0,1.11992451]
[1718064642196,0.81708,69511.0,69510.0,1.11792096]
[1718064643266,0.81708,69511.0,69510.0,1.11692096]
[1718064643899,0.81708,69511.0,69510.0,1.11592096]
[1718064644152,0.81708,69511.0,69510.0,1.11792096]
[1718064644649,0.81708,69511.0,69510.0,1.11692096]
[1718064644795,0.81708,69511.0,69510.0,1.01267665]
[1718064645387,0.81708,69511.0,69510.0,1.05576354]
[1718064646600,0.81708,69511.0,69510.0,1.34349154]
[1718064648282,0.81708,69511.0,69510.0,1.30040465]
[1718064652185,0.81708,69511.0,69510.0,1.3650755]
[1718064652385,0.81708,69511.0,69510.0,1.30040465]
[1718064652540,0.81708,69511.0,69510.0,1.44472458]
[1718064654179,0.81708,69511.0,69510.0,1.73245258]
[1718064655515,0.81708,69511.0,69510.0,1.66985258]
[1718064655751,0.81708,69511.0,69510.0,1.73245258]
[1718064656138,0.81708,69511.0,69510.0,1.81867415]
[1718064657167,0.81708,69511.0,69510.0,1.8186968]
[1718064658614,0.81708,69511.0,69510.0,1.81869612]
[1718064660679,0.57628,69511.0,69510.0,2.16301605]
[1718064660879,0.57628,69511.0,69510.0,2.36450171]
[1718064661259,0.57628,69511.0,69510.0,2.69386522]
[1718064661260,0.01282,69511.0,69510.0,2.69386522]
[1718064661511,0.00295544,69511.0,69510.0,2.61136775]
[1718064661866,0.00295544,69511.0,69510.0,4.34069175]
[1718064662267,0.00086,69511.0,69510.0,4.24250075]
[1718064662479,0.00086,69511.0,69510.0,4.24050075]
[1718064662863,0.00086,69511.0,69510.0,4.24250075]
[1718064663067,0.00086,69511.0,69510.0,4.24150075]
[1718064663286,0.1645,69533.0,69532.0,1.026729]
[1718064663528,0.00086,69535.0,69534.0,0.163814]
[1718064663745,0.00086,69535.0,69534.0,0.50906171]
[1718064663955,0.00086,69535.0,69534.0,0.87200898]
[1718064664396,0.00086,69535.0,69534.0,0.89354134]
[1718064664604,0.00086,69535.0,69534.0,1.03786127]
[1718064665046,0.00086,69535.0,69534.0,0.96250633]
[1718064665252,0.00086,69535.0,69534.0,1.7915031]
[1718064665464,0.00086,69535.0,69534.0,2.0791321]
[1718064665671,0.00086,69535.0,69534.0,1.8791321]
[1718064666303,0.00086,69535.0,69534.0,1.8575964]
[1718064666510,0.00086,69535.0,69534.0,1.86937045]
[1718064666939,0.00086,69535.0,69534.0,1.87037045]
[1718064667160,0.00086,69535.0,69534.0,1.81661886]
[1718064668022,0.00086,69535.0,69534.0,1.78477931]
[1718064668648,0.00086,69535.0,69534.0,1.78477926]
[1718064669932,0.00086,69535.0,69534.0,1.51823691]
[1718064670141,0.07816,69535.0,69534.0,1.51823691]
[1718064671178,0.07816,69535.0,69534.0,1.44368042]
[1718064671401,0.07816,69535.0,69534.0,1.51824081]
[1718064674642,0.07816,69535.0,69534.0,1.58084081]
[1718064674935,0.07816,69535.0,69534.0,1.78084081]
[1718064676703,0.07816,69535.0,69534.0,1.84762277]
[1718064678366,0.07816,69535.0,69534.0,1.86467864]
[1718064678546,0.07816,69535.0,69534.0,1.59789668]
[1718064682545,0.07816,69535.0,69534.0,1.79789668]
[1718064682780,0.07816,69535.0,69534.0,1.59789668]
[1718064683196,0.07816,69535.0,69534.0,1.53529668]
[1718064683428,0.07816,69535.0,69534.0,1.59789668]
[1718064684470,0.07816,69535.0,69534.0,1.52333629]
[1718064684680,0.07816,69535.0,69534.0,1.59789474]
[1718064686528,0.07816,69535.0,69534.0,1.79789474]
[1718064687104,0.07816,69535.0,69534.0,1.80866749]
[1718064688519,0.07816,69535.0,69534.0,1.79789474]
[1718064688934,0.07816,69535.0,69534.0,1.59789474]
[1718064689669,0.07816,69535.0,69534.0,1.79789269]
[1718064690281,0.07816,69535.0,69534.0,1.72333629]
[1718064690482,0.07816,69535.0,69534.0,1.59789269]
[1718064690848,0.07816,69535.0,69534.0,1.79789269]
[1718064691866,0.07816,69535.0,69534.0,1.72333629]
[1718064692039,0.07816,69535.0,69534.0,1.7978927]
[1718064692832,0.07816,69535.0,69534.0,1.79789269]
[1718064693916,0.07816,69535.0,69534.0,1.5978927]
[1718064698275,0.07816,69535.0,69534.0,1.52333629]
[1718064698652,0.07816,69535.0,69534.0,1.59789421]
[1718064700341,0.07816,69535.0,69534.0,1.53529421]
[1718064700565,0.07816,69535.0,69534.0,1.59789421]
[1718064705401,0.07816,69535.0,69534.0,1.53529421]
[1718064705537,0.07816,69535.0,69534.0,1.59789421]
[1718064709563,0.07816,69535.0,69534.0,1.79789421]
[1718064712330,0.07816,69535.0,69534.0,1.79789422]
[1718064713179,0.00086,69535.0,69534.0,1.79789422]
[1718064714206,0.00086,69535.0,69534.0,1.59689422]
[1718064714927,0.00086,69535.0,69534.0,1.59789422]
[1718064717715,0.00086,69535.0,69534.0,1.79789306]
[1718064718391,0.00086,69535.0,69534.0,1.82173542]
[1718064721337,0.00086,69535.0,69534.0,1.82173232]
[1718064722107,0.00086,69535.0,69534.0,1.75913232]
[1718064722343,0.00086,69535.0,69534.0,1.82173232]
[1718064723215,0.00086,69535.0,69534.0,1.74717865]
[1718064723441,0.00086,69535.0,69534.0,1.82173294]
[1718064723862,0.00086,69535.0,69534.0,1.75913294]
[1718064724065,0.00086,69535.0,69534.0,1.82173294]
[1718064728154,0.07215996,69551.0,69543.0,0.22]
[1718064728155,0.2339,69544.0,69543.0,0.22]
[1718064728371,0.2339,69544.0,69543.0,0.99615448]
[1718064728574,0.2339,69544.0,69543.0,1.48985536]
[1718064729197,0.2339,69544.0,69543.0,1.28985536]
[1718064729407,0.2339,69544.0,69543.0,1.29085536]
[1718064729614,0.2339,69544.0,69543.0,1.43517529]
[1718064731203,0.2339,69544.0,69543.0,1.52122858]
[1718064731418,0.2339,69544.0,69543.0,1.72222858]
[1718064731629,0.2339,69544.0,69543.0,1.52222858]
[1718064732682,0.2339,69544.0,69543.0,1.72222858]
[1718064733502,0.2339,69544.0,69543.0,1.52222858]
[1718064733731,0.2339,69544.0,69543.0,1.45962858]
[1718064733963,0.2339,69544.0,69543.0,1.52222858]
[1718064734368,0.2339,69544.0,69543.0,1.52219842]
[1718064734952,0.2339,69544.0,69543.0,1.43616963]
[1718064740566,0.2339,69544.0,69543.0,1.63453412]
[1718064740769,0.2339,69544.0,69543.0,1.63453407]
[1718064741188,0.2339,69544.0,69543.0,1.69902951]
[1718064741342,0.2339,69544.0,69543.0,1.63453407]
[1718064741756,0.2339,69544.0,69543.0,1.57193407]
[1718064741956,0.2339,69544.0,69543.0,1.63453407]
[1718064742157,0.2339,69544.0,69543.0,1.57193407]
[1718064742491,0.2339,69544.0,69543.0,1.63372139]
[1718064743664,0.2339,69544.0,69543.0,1.65061608]
[1718064744600,0.2339,69544.0,69543.0,1.65061823]
[1718064745279,0.2339,69544.0,69543.0,1.69361912]
[1718064746308,0.2339,69544.0,69543.0,1.65061823]
[1718064746526,0.2339,69544.0,69543.0,1.71511829]
[1718064747537,0.2339,69544.0,69543.0,1.71493652]
[1718064748125,0.2339,69544.0,69543.0,1.91493652]
[1718064748729,0.2339,69544.0,69543.0,1.85043646]
[1718064748965,0.2339,69544.0,69543.0,1.78701996]
[1718064749177,0.2339,69544.0,69543.0,1.84961996]
[1718064749384,0.00086,69552.0,69551.0,0.738895]
[1718064749589,0.00086,69552.0,69551.0,0.94993523]
[1718064749800,0.00086,69552.0,69551.0,1.17258835]
[1718064750024,0.23506,69552.0,69551.0,1.17258835]
[1718064750266,0.23506,69552.0,69551.0,1.10998835]
[1718064750716,0.23506,69552.0,69551.0,1.17258835]
[1718064750948,0.23506,69552.0,69551.0,1.17358835]
[1718064751356,0.23506,69552.0,69551.0,1.17458835]
[1718064752607,0.23506,69552.0,69551.0,1.11198835]
[1718064752806,0.23506,69552.0,69551.0,1.17458835]
[1718064756224,0.23506,69552.0,69551.0,1.18535488]
[1718064756678,0.23506,69552.0,69551.0,1.18534966]
[1718064758971,0.23506,69552.0,69551.0,1.11146016]
[1718064759521,0.23506,69552.0,69551.0,1.11146009]
[1718064765579,0.23506,69552.0,69551.0,1.04886009]
[1718064765879,0.23506,69552.0,69551.0,1.07359032]
[1718064768648,0.23506,69552.0,69551.0,1.01099092]
[1718064768864,0.23506,69552.0,69551.0,1.07359092]
[1718064769072,0.23506,69552.0,69551.0,1.21791085]
[1718064769903,0.23506,69552.0,69551.0,1.21791079]
[1718064770316,0.23506,69552.0,69551.0,1.15531079]
[1718064770523,0.23506,69552.0,69551.0,1.21791079]
[1718064772068,0.23506,69552.0,69551.0,1.21860332]
[1718064774431,0.23506,69552.0,69551.0,1.26162608]
[1718064776193,0.23506,69552.0,69551.0,1.25086044]
[1718064776402,0.23506,69552.0,69551.0,1.25087852]
[1718064777026,0.23506,69552.0,69551.0,1.24934446]
[1718064777587,0.23506,69552.0,69551.0,1.24934563]
[1718064780348,0.23506,69552.0,69551.0,1.24943199]
[1718064782341,0.23506,69552.0,69551.0,1.20639105]
[1718064782548,0.23506,69552.0,69551.0,1.04846128]
[1718064782765,0.23506,69552.0,69551.0,1.20642257]
[1718064783168,0.23506,69552.0,69551.0,1.49398057]
[1718064784013,0.23506,69552.0,69551.0,1.43138057]
[1718064784226,0.23506,69552.0,69551.0,1.49398057]
[1718064785503,0.23506,69552.0,69551.0,1.43138057]
[1718064785712,0.23506,69552.0,69551.0,1.49398057]
[1718064786303,0.23506,69552.0,69551.0,1.34966064]
[1718064786732,0.23506,69552.0,69551.0,1.28706064]
[1718064786934,0.23506,69552.0,69551.0,1.34966207]
[1718064788239,0.23506,69552.0,69551.0,1.28706207]
[1718064788448,0.23506,69552.0,69551.0,1.34966207]
[1718064789850,0.23506,69552.0,69551.0,0.48698807]
[1718064790218,0.23506,69552.0,69551.0,0.5550553]
[1718064790538,0.23506,69552.0,69551.0,0.48698807]
[1718064791345,0.81017,69552.0,69551.0,0.48698807]
[1718064793214,0.81017,69552.0,69551.0,0.30902678]
[1718064793467,0.81017,69552.0,69551.0,0.47487051]
[1718064793664,0.81017,69552.0,69551.0,0.48487051]
[1718064793869,0.81017,69552.0,69551.0,0.47487051]
[1718064794317,0.81017,69552.0,69551.0,0.5351178]
[1718064795600,0.81017,69552.0,69551.0,0.47487051]
[1718064795975,0.81017,69552.0,69551.0,0.49487051]
[1718064796428,0.81017,69552.0,69551.0,0.47487051]
[1718064797213,0.81017,69552.0,69551.0,0.41227051]
[1718064798196,0.81017,69552.0,69551.0,0.43379605]
[1718064800030,0.891273,69552.0,69551.0,0.29001705]
[1718064800253,1.01708993,69552.0,69551.0,0.1026518]
[1718064800433,1.06021094,69552.0,69551.0,0.02809958]
[1718064800633,1.01708993,69552.0,69551.0,0.002]
[1718064801245,1.06019212,69552.0,69551.0,0.001]
[1718064801425,0.82599212,69552.0,69538.0,0.1]
[1718064801753,0.1589,69546.0,69538.0,0.1]
[1718064801936,0.0807,69543.0,69539.0,0.02611667]
[1718064802139,0.57511,69542.0,69540.0,0.08242707]
[1718064802345,0.076,69541.0,69540.0,0.08242707]
[1718064802463,0.65111,69541.0,69540.0,0.18242707]
[1718064803419,0.65111,69541.0,69540.0,0.18342707]
[1718064804421,0.65111,69541.0,69540.0,0.18442707]
[1718064804769,0.65111,69541.0,69540.0,0.08442707]
[1718064805553,0.65111,69541.0,69540.0,0.002]
[1718064807152,0.65111,69541.0,69539.0,0.1]
[1718064807357,0.65111,69541.0,69540.0,0.002]
[1718064807951,0.65111,69541.0,69540.0,0.001]
[1718064808134,0.65111,69541.0,69540.0,0.02628419]
[1718064808336,0.65111,69541.0,69540.0,0.02728419]
[1718064810567,0.65111,69541.0,69540.0,0.02828419]
[1718064811561,0.65111,69541.0,69540.0,0.17208619]
[1718064811760,0.65111,69541.0,69540.0,0.27208619]
[1718064812172,0.64611,69541.0,69540.0,0.27208619]
[1718064814258,0.64611,69541.0,69540.0,0.3098567]
[1718064814727,0.64111,69541.0,69540.0,0.3098567]
[1718064817551,0.63611,69541.0,69540.0,0.3098567]
[1718064820680,0.63111,69541.0,69540.0,0.3098567]
[1718064822120,0.63111,69541.0,69540.0,0.3108027]
[1718064822333,0.63197,69541.0,69540.0,0.02923019]
[1718064822557,0.79477,69541.0,69540.0,0.02923019]
[1718064822978,0.93857,69541.0,69540.0,0.002946]
[1718064823611,0.93857,69541.0,69540.0,0.000946]
[1718064823816,1.22500693,69541.0,69540.0,0.000946]
[1718064824020,1.22500693,69541.0,69540.0,0.001946]
[1718064824021,1.20000693,69541.0,69540.0,0.001946]
[1718064824271,1.07788993,69541.0,69540.0,0.001946]
[1718064824455,1.36548993,69541.0,69540.0,0.001946]
[1718064824663,0.32581,69536.0,69535.0,0.000946]
[1718064824869,1.10783993,69536.0,69535.0,0.000946]
[1718064825080,0.163816,69533.0,69532.0,0.0124782]
[1718064825284,1.10454593,69533.0,69532.0,0.0124782]
[1718064825500,1.08454593,69533.0,69532.0,0.03878419]
[1718064825710,1.10454593,69533.0,69532.0,0.0124782]
[1718064825919,1.10454593,69533.0,69532.0,0.03878419]
[1718064825920,1.08454593,69533.0,69532.0,0.03878419]
[1718064826129,1.10454593,69533.0,69532.0,0.0124782]
[1718064826332,1.10454593,69533.0,69532.0,0.03878419]
[1718064826536,1.10454593,69533.0,69532.0,0.0124782]
[1718064826692,1.10454593,69533.0,69532.0,0.03878419]
[1718064826909,1.09454593,69533.0,69532.0,0.0124782]
[1718064827094,1.17304593,69533.0,69532.0,0.03878419]
[1718064827297,1.15304593,69533.0,69532.0,0.0124782]
[1718064827509,1.17304593,69533.0,69532.0,0.03986404]
[1718064827719,1.17304593,69533.0,69532.0,0.0134782]
[1718064827933,1.17304593,69533.0,69532.0,0.03986404]
[1718064828777,1.17304593,69533.0,69532.0,0.03886404]
[1718064829174,1.17304593,69533.0,69532.0,0.0134782]
[1718064829584,1.16304593,69533.0,69532.0,0.0134782]
[1718064829963,1.30736586,69533.0,69532.0,0.0134782]
[1718064830189,1.14304593,69533.0,69532.0,0.0134782]
[1718064830400,1.14304593,69533.0,69532.0,0.0144782]
[1718064830998,1.08044593,69533.0,69532.0,0.0144782]
[1718064831207,1.14304593,69533.0,69532.0,0.0144782]
[1718064832509,1.07044593,69533.0,69532.0,0.0134782]
[1718064833746,1.07044593,69533.0,69532.0,0.0144782]
[1718064834315,1.21476586,69533.0,69532.0,0.0144782]
[1718064836950,1.27736586,69533.0,69532.0,0.0144782]
[1718064837992,1.29736586,69533.0,69532.0,0.0144782]